fUSD/lending_fUSD_20240627
["ID","MTS","AMOUNT","RATE_DAILY","PERIOD"]
[330464042,1719450647001,-151.0,0.00015666,2]
[330464043,1719450647012,-151.0,0.00015666,2]
[330464044,1719450647024,-151.0,0.00015666,2]
[330464045,1719450647036,-330.631227,0.00015666,2]
[330464046,1719450647047,-151.0,0.00015666,2]
[330464047,1719450647061,-330.631227,0.00015666,2]
[330464048,1719450647077,-290.0,0.00015666,2]
[330464049,1719450647089,-1197.0,0.00015666,2]
[330464050,1719450647101,-5802.0,0.00015666,2]
[330464053,1719450647113,-10942.378,0.00015666,2]
[330464054,1719450647126,-1661.0,0.00015666,2]
[330464055,1719450647138,-5170.0,0.00015666,2]
[330464056,1719450647149,-196.677,0.00015666,2]
[330464057,1719450647168,-150.0,0.00015845,2]
[330464058,1719450647180,-164.67,0.00015845,2]
[330464059,1719450647193,-357.62,0.00015845,2]
[330464060,1719450647206,-423.85,0.00015845,2]
[330464061,1719450647218,-150.9,0.00015845,2]
[330464062,1719450647230,-150.0,0.00015845,2]
[330464063,1719450647242,-164.67,0.00015845,2]
[330464064,1719450647254,-423.85,0.00015845,2]
[330464065,1719450647266,-150.0,0.00015845,2]
[330464066,1719450647277,-164.67,0.00015845,2]
[330464067,1719450647289,-423.85,0.00015845,2]
[330464068,1719450647301,-423.85,0.00015845,2]
[330464069,1719450647314,-150.0,0.00015845,2]
[330464070,1719450647326,-164.67,0.00015845,2]
[330464071,1719450647337,-423.85,0.00015845,2]
[330464072,1719450647348,-162.69,0.00015845,2]
[330464073,1719450647360,-794.753853,0.00015845,2]
[330464074,1719450647371,-794.753853,0.00015845,2]
[330464075,1719450647383,-483.0,0.000159,2]
[330464076,1719450647394,-1267.0,0.000159,2]
[330464077,1719450647406,-8632.10648855,0.00016082,2]
[330464078,1719450647418,-151.560481,0.00016082,2]
[330464079,1719450647441,-151.0,0.00016082,2]
[330464080,1719450647457,-151.0,0.00016082,2]
[330464081,1719450647473,-151.0,0.00016082,2]
[330464082,1719450647487,-151.0,0.00016082,2]
[330464083,1719450647500,-151.0,0.00016082,2]
[330464084,1719450647515,-151.0,0.00016082,2]
[330464085,1719450647530,-289.171628,0.00016082,2]
[330464086,1719450647545,-151.0,0.00016082,2]
[330464087,1719450647559,-151.0,0.00016082,2]
[330464088,1719450647576,-151.0,0.00016082,2]
[330464089,1719450647590,-151.0,0.00016082,2]
[330464090,1719450647604,-151.0,0.00016082,2]
[330464091,1719450647618,-151.0,0.00016082,2]
[330464092,1719450647632,-151.0,0.00016082,2]
[330464093,1719450647648,-279.016037,0.00016082,2]
[330464094,1719450647662,-151.0,0.00016082,2]
[330464095,1719450647673,-151.0,0.00016082,2]
[330464096,1719450647685,-280.762652,0.00016082,2]
[330464097,1719450647698,-280.762652,0.00016082,2]
[330464098,1719450647713,-151.0,0.00016082,2]
[330464099,1719450647726,-151.0,0.00016082,2]
[330464100,1719450647739,-151.0,0.00016082,2]
[330464101,1719450647755,-151.0,0.00016082,2]
[330464102,1719450647769,-151.0,0.00016082,2]
[330464103,1719450647780,-151.0,0.00016082,2]
[330464104,1719450647791,-151.0,0.00016082,2]
[330464105,1719450647803,-151.0,0.00016082,2]
[330464106,1719450647818,-151.0,0.00016082,2]
[330464107,1719450647833,-151.0,0.00016082,2]
[330464108,1719450647845,-151.0,0.00016082,2]
[330464109,1719450647863,-151.0,0.00016082,2]
[330464110,1719450647886,-228.917741,0.00016082,2]
[330464111,1719450647907,-228.917741,0.00016082,2]
[330464112,1719450647918,-310.785217,0.00016082,2]
[330464113,1719450647929,-310.785217,0.00016082,2]
[330464114,1719450647942,-29999.9999,0.00016088,2]
[330464115,1719450647955,-151.0,0.00016088,2]
[330464116,1719450647969,-151.0,0.00016088,2]
[330464117,1719450647985,-185.747511,0.00016088,2]
[330464118,1719450648000,-185.747511,0.00016088,2]
[330464119,1719450648015,-151.0,0.00016088,2]
[330464120,1719450648030,-151.0,0.00016088,2]
[330464121,1719450648044,-151.0,0.00016088,2]
[330464122,1719450648059,-151.0,0.00016088,2]
[330464123,1719450648074,-332.658122,0.00016088,2]
[330464124,1719450648088,-151.0,0.00016088,2]
[330464125,1719450648104,-2073.044676,0.00016088,2]
[330464126,1719450648118,-2073.044676,0.00016088,2]
[330464127,1719450648156,-151.0,0.00016088,2]
[330464128,1719450648169,-151.0,0.00016088,2]
[330464129,1719450648183,-151.0,0.00016088,2]
[330464130,1719450648197,-330.631227,0.00016088,2]
[330464131,1719450648210,-151.0,0.00016088,2]
[330464132,1719450648223,-330.631227,0.00016088,2]
[330464133,1719450648236,-765.490828,0.00016088,2]
[330464134,1719450648249,-765.490828,0.00016088,2]
[330464135,1719450648261,-151.0,0.00016088,2]
[330464136,1719450648274,-200.0,0.00016095,2]
[330464137,1719450648287,-181.6,0.00016116,2]
[330464138,1719450648301,-151.0,0.00016149,2]
[330464139,1719450648316,-634.965178,0.00016149,2]
[330464140,1719450648330,-167.233354,0.00016149,2]
[330464141,1719450648345,-634.965178,0.00016149,2]
[330464142,1719450648359,-167.233354,0.00016149,2]
[330464143,1719450648374,-151.0,0.00016149,2]
[330464144,1719450648388,-151.0,0.00016149,2]
[330464145,1719450648402,-151.0,0.00016149,2]
[330464146,1719450648415,-184.017916,0.00016149,2]
[330464147,1719450648431,-184.017916,0.00016149,2]
[330464148,1719450648444,-1649.90375393,0.00016186,2]
[330464149,1719450648456,-215.740411,0.00016186,2]
[330464150,1719450648469,-215.740411,0.00016186,2]
[330464151,1719450648482,-169.424765,0.00016186,2]
[330464152,1719450648495,-169.424765,0.00016186,2]
[330464153,1719450648507,-151.0,0.00016186,2]
[330464154,1719450648520,-255.422963,0.00016186,2]
[330464155,1719450648533,-255.422963,0.00016186,2]
[330464156,1719450648546,-151.34,0.00016247,2]
[330464157,1719450648559,-150.0,0.00016247,2]
[330464158,1719450648572,-150.0,0.00016247,2]
[330464159,1719450648584,-1493.78880258,0.00016315,2]
[330464160,1719450648596,-151.0,0.0001636,2]
[330464161,1719450648609,-417.864477,0.0001636,2]
[330464162,1719450648621,-417.864477,0.0001636,2]
[330464163,1719450648634,-151.0,0.0001636,2]
[330464164,1719450648647,-260.11,0.0001636,2]
[330464165,1719450648659,-151.0,0.0001636,2]
[330464166,1719450648672,-167.18,0.00016438,2]
[330464167,1719450648685,-423.041201,0.00016438,2]
[330464168,1719450648697,-423.041201,0.00016438,2]
[330464169,1719450648709,-423.041201,0.00016438,2]
[330464170,1719450648721,-423.041201,0.00016438,2]
[330464171,1719450648733,-423.041201,0.00016438,2]
[330464172,1719450648744,-423.041201,0.00016438,2]
[330464173,1719450648757,-423.041201,0.00016438,2]
[330464174,1719450648769,-423.041201,0.00016438,2]
[330464175,1719450648781,-423.041201,0.00016438,2]
[330464176,1719450648794,-423.041201,0.00016438,2]
[330464177,1719450648806,-423.041201,0.00016438,2]
[330464178,1719450648820,-423.041201,0.00016438,2]
[330464179,1719450648833,-519.7705923,0.00016455,2]
[330464180,1719450648845,-166.026,0.00016465,2]
[330464181,1719450648862,-151.0,0.00016465,2]
[330464182,1719450648880,-360.0,0.00016466,2]
[330464183,1719450648892,-1273.0,0.00016466,2]
[330464184,1719450648904,-1655.0,0.00016466,2]
[330464185,1719450648917,-1830.0,0.00016466,2]
[330464186,1719450648928,-166.0,0.00016466,2]
[330464187,1719450648940,-1304.0,0.00016466,2]
[330464188,1719450648952,-2413.0,0.00016466,2]
[330464189,1719450648964,-1985.0,0.00016466,2]
[330464190,1719450648975,-547.0,0.00016466,2]
[330464191,1719450648986,-3202.0,0.00016466,2]
[330464192,1719450648998,-151.0,0.00016466,2]
[330464193,1719450649010,-794.753853,0.00016466,2]
[330464194,1719450649021,-794.753853,0.00016466,2]
[330464195,1719450649033,-462.0,0.00016491,2]
[330464196,1719450649044,-280.762652,0.000165,2]
[330464197,1719450649056,-280.762652,0.000165,2]
[330464198,1719450649069,-151.0,0.000165,2]
[330464199,1719450649082,-151.0,0.000165,2]
[330464200,1719450649093,-151.0,0.000165,2]
[330464201,1719450649106,-151.0,0.000165,2]
[330464202,1719450649117,-151.0,0.000165,2]
[330464203,1719450649131,-151.0,0.000165,2]
[330464204,1719450649143,-151.0,0.000165,2]
[330464205,1719450649156,-151.0,0.000165,2]
[330464206,1719450649169,-151.0,0.000165,2]
[330464207,1719450649181,-151.0,0.000165,2]
[330464208,1719450649194,-151.0,0.000165,2]
[330464209,1719450649206,-228.917741,0.000165,2]
[330464210,1719450649218,-228.917741,0.000165,2]
[330464211,1719450649229,-310.785217,0.000165,2]
[330464212,1719450649242,-151.0,0.000165,2]
[330464213,1719450649254,-634.965178,0.000165,2]
[330464214,1719450649266,-167.233354,0.000165,2]
[330464215,1719450649277,-310.785217,0.000165,2]
[330464216,1719450649289,-634.965178,0.000165,2]
[330464217,1719450649300,-167.233354,0.000165,2]
[330464218,1719450649312,-151.0,0.000165,2]
[330464219,1719450649324,-151.0,0.000165,2]
[330464220,1719450649336,-176.853853,0.000165,2]
[330464221,1719450649349,-184.017916,0.000165,2]
[330464222,1719450649362,-184.017916,0.000165,2]
[330464223,1719450649374,-760.07072608,0.000165,2]
[330464224,1719450649386,-20769.83878618,0.000165,2]
[330464225,1719450649399,-765.490828,0.000165,2]
[330464226,1719450649411,-765.490828,0.000165,2]
[330464227,1719450649424,-151.0,0.000165,2]
[330464228,1719450649436,-151.0,0.00016567,2]
[330464229,1719450649448,-151.0,0.00016567,2]
[330464230,1719450649461,-151.0,0.00016567,2]
[330464231,1719450649474,-840.0,0.00016623,2]
[330464232,1719450649486,-833.69,0.00016667,2]
[330464233,1719450649498,-151.0,0.00016667,2]
[330464234,1719450649510,-151.0,0.00016667,2]
[330464235,1719450649522,-151.0,0.00016667,2]
[330464236,1719450649534,-151.0,0.00016667,2]
[330464237,1719450649547,-151.0,0.00016667,2]
[330464238,1719450649560,-151.0,0.00016667,2]
[330464239,1719450649572,-151.0,0.00016667,2]
[330464240,1719450649584,-151.0,0.00016667,2]
[330464241,1719450649596,-151.0,0.00016667,2]
[330464242,1719450649609,-215.740411,0.00016667,2]
[330464243,1719450649621,-215.740411,0.00016667,2]
[330464244,1719450649633,-169.424765,0.00016667,2]
[330464245,1719450649645,-169.424765,0.00016667,2]
[330464246,1719450649657,-151.0,0.00016667,2]
[330464247,1719450649669,-255.422963,0.00016667,2]
[330464248,1719450649681,-255.422963,0.00016667,2]
[330464249,1719450649692,-2072.9009926,0.000167,2]
[330464250,1719450649705,-151.0,0.00016711,2]
[330464251,1719450649716,-151.0,0.00016711,2]
[330464252,1719450649728,-151.0,0.00016711,2]
[330464253,1719450649740,-794.753853,0.00016711,2]
[330464254,1719450649751,-794.753853,0.00016711,2]
[330464255,1719450649763,-151.0,0.00016711,2]
[330464256,1719450649774,-417.864477,0.00016711,2]
[330464257,1719450649786,-417.864477,0.00016711,2]
[330464258,1719450649798,-151.0,0.00016711,2]
[330464259,1719450649810,-423.041201,0.00016711,2]
[330464260,1719450649822,-423.041201,0.00016711,2]
[330464261,1719450649833,-151.0,0.00016711,2]
[330464262,1719450649847,-2073.044676,0.00016711,2]
[330464263,1719450649859,-2073.044676,0.00016711,2]
[330464264,1719450649875,-151.0,0.00016711,2]
[330464265,1719450649886,-151.0,0.00016711,2]
[330464266,1719450649899,-151.0,0.00016711,2]
[330464267,1719450649911,-330.631227,0.00016711,2]
[330464268,1719450649923,-245.024918,0.00016711,2]
[330464269,1719450649938,-330.631227,0.00016711,2]
[330464270,1719450649952,-19809.55605681,0.00016711,2]
[330464271,1719450649966,-151.0,0.00016808,2]
[330464272,1719450649978,-151.0,0.00016808,2]
[330464273,1719450649989,-332.658122,0.00016808,2]
[330464274,1719450650001,-151.0,0.00016808,2]
[330464275,1719450650013,-151.0,0.00016809,2]
[330464276,1719450650024,-185.747511,0.00016809,2]
[330464277,1719450650036,-185.747511,0.00016809,2]
[330464278,1719450650048,-8632.10648855,0.00016809,2]
[330464279,1719450650062,-446.35925351,0.00016969,2]
[330464280,1719450650075,-1649.90375393,0.00017329,2]
[330464281,1719450650087,-204.320588,0.000174,2]
[330464282,1719450650099,-634.965178,0.000174,2]
[330464283,1719450650112,-167.233354,0.000174,2]
[330464284,1719450650123,-634.965178,0.000174,2]
[330464285,1719450650135,-167.233354,0.000174,2]
[330464286,1719450650147,-151.0,0.000174,2]
[330464287,1719450650159,-151.0,0.000174,2]
[330464288,1719450650171,-184.017916,0.000174,2]
[330464289,1719450650184,-184.017916,0.000174,2]
[330464290,1719450650195,-760.07072608,0.000174,2]
[330464291,1719450650208,-20769.83878618,0.000174,2]
[330464292,1719450650220,-765.490828,0.000174,2]
[330464293,1719450650232,-765.490828,0.000174,2]
[330464294,1719450650245,-151.0,0.000174,2]
[330464295,1719450650257,-151.0,0.00017456,2]
[330464296,1719450650269,-151.0,0.00017456,2]
[330464297,1719450650281,-280.762652,0.00017536,2]
[330464298,1719450650295,-280.762652,0.00017536,2]
[330464299,1719450650310,-151.0,0.00017536,2]
[330464300,1719450650321,-151.0,0.00017536,2]
[330464301,1719450650332,-151.0,0.00017536,2]
[330464302,1719450650344,-151.0,0.00017536,2]
[330464303,1719450650356,-151.0,0.00017536,2]
[330464304,1719450650368,-215.740411,0.00017536,2]
[330464305,1719450650380,-215.740411,0.00017536,2]
[330464306,1719450650393,-169.424765,0.00017536,2]
[330464307,1719450650404,-169.424765,0.00017536,2]
[330464308,1719450650417,-255.422963,0.00017536,2]
[330464309,1719450650429,-255.422963,0.00017536,2]
[330464310,1719450650441,-8632.10648855,0.00017536,2]
[330464311,1719450650453,-333.98,0.00017695,2]
[330464312,1719450650465,-525.88970109,0.00017703,2]
[330464313,1719450650477,-200.0,0.00017704,2]
[330464314,1719450650489,-226.97511983,0.00017829,2]
[330464315,1719450650501,-226.97511983,0.00017889,2]
[330464316,1719450650513,-452.73383428,0.00017899,2]
[330464317,1719450650525,-222.33123065,0.00017899,2]
[330464318,1719450650537,-4012.9760543,0.00017899,2]
[330464319,1719450650549,-18424.1681906,0.00017975,2]
[330464320,1719450650563,-928.4417372,0.00017975,2]
[330464321,1719450650575,-200.0,0.00017989,7]
[330464322,1719450650587,-150.0,0.00017998,2]
[330464323,1719450650598,-151.0,0.00017999,2]
[330464324,1719450650610,-151.0,0.00017999,2]
[330464325,1719450650622,-151.0,0.00017999,2]
[330464326,1719450650635,-151.0,0.00017999,2]
[330464327,1719450650647,-185.747511,0.00017999,2]
[330464328,1719450650660,-185.747511,0.00017999,2]
[330464329,1719450650672,-151.0,0.00017999,2]
[330464330,1719450650685,-151.0,0.00017999,2]
[330464331,1719450650698,-151.0,0.00017999,2]
[330464332,1719450650709,-151.0,0.00017999,2]
[330464333,1719450650722,-332.658122,0.00017999,2]
[330464334,1719450650734,-151.0,0.00017999,2]
[330464335,1719450650746,-151.0,0.00017999,2]
[330464336,1719450650757,-151.0,0.00017999,2]
[330464337,1719450650770,-151.0,0.00017999,2]
[330464338,1719450650783,-151.0,0.00017999,2]
[330464339,1719450650798,-151.0,0.00017999,2]
[330464340,1719450650810,-151.0,0.00017999,2]
[330464341,1719450650822,-151.0,0.00017999,2]
[330464342,1719450650834,-151.0,0.00017999,2]
[330464343,1719450650847,-151.0,0.00017999,2]
[330464344,1719450650863,-151.0,0.00017999,2]
[330464345,1719450650878,-151.0,0.00017999,2]
[330464346,1719450650890,-151.0,0.00017999,2]
[330464347,1719450650903,-151.0,0.00017999,2]
[330464348,1719450650914,-151.0,0.00017999,2]
[330464349,1719450650926,-282.967228,0.00017999,2]
[330464350,1719450650939,-221.793115,0.00017999,2]
[330464351,1719450650951,-151.0,0.00017999,2]
[330464352,1719450650963,-151.0,0.00017999,2]
[330464353,1719450650975,-151.0,0.00017999,2]
[330464354,1719450650986,-151.0,0.00017999,2]
[330464355,1719450650998,-151.0,0.00017999,2]
[330464356,1719450651010,-151.0,0.00017999,2]
[330464357,1719450651829,-228.917741,0.00017999,2]
[330464358,1719450651849,-228.917741,0.00017999,2]
[330464359,1719450651885,-228.917741,0.00017999,2]
[330464360,1719450651919,-228.917741,0.00017999,2]
[330464361,1719450651935,-310.785217,0.00017999,2]
[330464362,1719450651946,-310.785217,0.00017999,2]
[330464363,1719450651956,-634.965178,0.00017999,2]
[330464364,1719450651965,-310.785217,0.00017999,2]
[330464365,1719450651975,-167.233354,0.00017999,2]
[330464366,1719450651984,-310.785217,0.00017999,2]
[330464367,1719450651993,-634.965178,0.00017999,2]
[330464368,1719450652003,-167.233354,0.00017999,2]
[330464369,1719450652012,-151.0,0.00017999,2]
[330464370,1719450652021,-151.0,0.00017999,2]
[330464371,1719450652031,-794.753853,0.00017999,2]
[330464372,1719450652041,-184.017916,0.00017999,2]
[330464373,1719450652051,-794.753853,0.00017999,2]
[330464374,1719450652060,-184.017916,0.00017999,2]
[330464375,1719450652070,-215.740411,0.00017999,2]
[330464376,1719450652080,-215.740411,0.00017999,2]
[330464377,1719450652090,-169.424765,0.00017999,2]
[330464378,1719450652099,-169.424765,0.00017999,2]
[330464379,1719450652108,-255.422963,0.00017999,2]
[330464380,1719450652117,-255.422963,0.00017999,2]
[330464381,1719450652127,-289.811593,0.00017999,2]
[330464382,1719450652137,-417.864477,0.00017999,2]
[330464383,1719450652146,-417.864477,0.00017999,2]
[330464384,1719450652155,-161.188264,0.00017999,2]
[330464385,1719450652165,-423.041201,0.00017999,2]
[330464386,1719450652174,-423.041201,0.00017999,2]
[330464387,1719450652184,-151.0,0.00017999,2]
[330464388,1719450652193,-2073.044676,0.00017999,2]
[330464389,1719450652202,-2073.044676,0.00017999,2]
[330464390,1719450652212,-2073.044676,0.00017999,2]
[330464391,1719450652222,-2073.044676,0.00017999,2]
[330464392,1719450652231,-151.0,0.00017999,2]
[330464393,1719450652240,-151.0,0.00017999,2]
[330464394,1719450652249,-180.256005,0.00017999,2]
[330464395,1719450652259,-151.0,0.00017999,2]
[330464396,1719450652268,-151.0,0.00017999,2]
[330464397,1719450652277,-330.631227,0.00017999,2]
[330464398,1719450652286,-330.631227,0.00017999,2]
[330464399,1719450652296,-330.631227,0.00017999,2]
[330464400,1719450652305,-330.631227,0.00017999,2]
[330464401,1719450652315,-765.490828,0.00017999,2]
[330464402,1719450652325,-765.490828,0.00017999,2]
[330464403,1719450652334,-447119.39548549,0.00017999,2]
[330464404,1719450652344,-151.0,0.00017999,2]
[330464405,1719450652354,-1462.92717842,0.00018,2]
[330464406,1719450652364,-370.20131552,0.00018,2]
[330464407,1719450652373,-293.83988913,0.00018,2]
[330464408,1719450652383,-151.0,0.00018,2]
[330464409,1719450652393,-504.75843451,0.00018,2]
[330464410,1719450652403,-504.75843451,0.00018,2]
[330464411,1719450652413,-504.75843451,0.00018,2]
[330464412,1719450652423,-504.75843451,0.00018,2]
[330464413,1719450652432,-504.75843451,0.00018,2]
[330464414,1719450652442,-504.75843451,0.00018,2]
[330464415,1719450652451,-504.75843451,0.00018,2]
[330464416,1719450652461,-504.75843451,0.00018,2]
[330464417,1719450652470,-504.75843451,0.00018,2]
[330464418,1719450652480,-504.75843451,0.00018,2]
[330464419,1719450652489,-504.75843451,0.00018,2]
[330464420,1719450652500,-504.75843451,0.00018,2]
[330464421,1719450652510,-504.75843451,0.00018,2]
[330464422,1719450652520,-504.75843451,0.00018,2]
[330464423,1719450652531,-504.75843451,0.00018,2]
[330464424,1719450652542,-504.75843451,0.00018,2]
[330464425,1719450652551,-504.75843451,0.00018,2]
[330464426,1719450652562,-504.75843451,0.00018,2]
[330464427,1719450652572,-504.75843451,0.00018,2]
[330464428,1719450652581,-504.75843451,0.00018,2]
[330464429,1719450652592,-504.75843451,0.00018,2]
[330464430,1719450652602,-504.75843451,0.00018,2]
[330464431,1719450652612,-504.75843451,0.00018,2]
[330464432,1719450652622,-504.75843451,0.00018,2]
[330464433,1719450652632,-504.75843451,0.00018,2]
[330464434,1719450652642,-504.75843451,0.00018,2]
[330464435,1719450652652,-504.75843451,0.00018,2]
[330464436,1719450652661,-504.75843451,0.00018,2]
[330464437,1719450652671,-504.75843451,0.00018,2]
[330464438,1719450652681,-504.75843451,0.00018,2]
[330464439,1719450652690,-504.75843451,0.00018,2]
[330464440,1719450652700,-504.75843451,0.00018,2]
[330464441,1719450652710,-504.75843451,0.00018,2]
[330464442,1719450652720,-504.75843451,0.00018,2]
[330464443,1719450652729,-504.75843451,0.00018,2]
[330464444,1719450652740,-504.75843451,0.00018,2]
[330464445,1719450652749,-504.75843451,0.00018,2]
[330464446,1719450652759,-504.75843451,0.00018,2]
[330464447,1719450652770,-504.75843451,0.00018,2]
[330464448,1719450652779,-504.75843451,0.00018,2]
[330464449,1719450652789,-504.75843451,0.00018,2]
[330464450,1719450652799,-504.75843451,0.00018,2]
[330464451,1719450652808,-504.75843451,0.00018,2]
[330464452,1719450652818,-504.75843451,0.00018,2]
[330464453,1719450652828,-504.75843451,0.00018,2]
[330464454,1719450652838,-8632.10648855,0.00018264,2]
[330464455,1719450652847,-417.864477,0.00018264,2]
[330464456,1719450652859,-417.864477,0.00018264,2]
[330464457,1719450652870,-423.041201,0.00018264,2]
[330464458,1719450652880,-423.041201,0.00018264,2]
[330464459,1719450652890,-151.0,0.00018264,2]
[330464460,1719450652899,-765.490828,0.00018264,2]
[330464461,1719450652909,-765.49083,0.00018264,2]
[330464462,1719450652919,-840.0,0.00018285,2]
[330464463,1719450652928,-280.762652,0.000183,2]
[330464464,1719450652939,-280.762652,0.000183,2]
[330464465,1719450652949,-151.0,0.000183,2]
[330464466,1719450652959,-634.965178,0.000183,2]
[330464467,1719450652968,-167.233354,0.000183,2]
[330464468,1719450652978,-634.965174,0.000183,2]
[330464469,1719450652987,-167.23336,0.000183,2]
[330464470,1719450652997,-151.0,0.000183,2]
[330464471,1719450653006,-151.0,0.000183,2]
[330464472,1719450653016,-794.753853,0.000183,2]
[330464473,1719450653026,-184.017916,0.000183,2]
[330464474,1719450653036,-794.753853,0.000183,2]
[330464475,1719450653046,-184.017907,0.000183,2]
[330464476,1719450653056,-215.740411,0.000183,2]
[330464477,1719450653067,-215.740419,0.000183,2]
[330464478,1719450653078,-169.424765,0.000183,2]
[330464479,1719450653089,-169.42476,0.000183,2]
[330464480,1719450653098,-255.422963,0.000183,2]
[330464481,1719450653108,-255.422959,0.000183,2]
[330464482,1719450653118,-760.07072608,0.000183,2]
[330464483,1719450653127,-20769.83878618,0.000183,2]
[330464484,1719450653137,-2073.044676,0.000183,2]
[330464485,1719450653148,-2073.044686,0.000183,2]
[330464486,1719450653158,-151.0,0.000183,2]
[330464487,1719450653167,-151.0,0.000183,2]
[330464488,1719450653177,-330.631227,0.000183,2]
[330464489,1719450653186,-330.631223,0.000183,2]
[330464490,1719450653196,-151.0,0.000183,2]
[330464491,1719450653206,-151.0,0.00018344,2]
[330464492,1719450653215,-1649.90375393,0.00018471,2]
[330464493,1719450653224,-397.78721958,0.00018899,2]
[330464494,1719450653233,-152.16,0.000189,2]
[330464495,1719450653243,-152.16,0.000189,2]
[330464496,1719450653252,-152.16,0.000189,2]
[330464497,1719450653261,-152.16,0.000189,2]
[330464498,1719450653271,-152.16,0.000189,2]
[330464499,1719450653280,-152.16,0.000189,2]
[330464500,1719450653290,-222.32565827,0.00018981,2]
[330464501,1719450653299,-8632.10648855,0.00018991,2]
[330464502,1719450653308,-151.0,0.00018991,2]
[330464503,1719450653320,-185.747511,0.00018991,2]
[330464504,1719450653329,-185.747511,0.00018991,2]
[330464505,1719450653342,-151.0,0.00018991,2]
[330464506,1719450653352,-151.0,0.00018991,2]
[330464507,1719450653361,-151.0,0.00018991,2]
[330464508,1719450653371,-151.0,0.00018991,2]
[330464509,1719450653380,-151.0,0.00018991,2]
[330464510,1719450653390,-184.471316,0.00018991,2]
[330464511,1719450653400,-151.0,0.00018991,2]
[330464512,1719450653410,-151.0,0.00018991,2]
[330464513,1719450653420,-151.0,0.00018991,2]
[330464514,1719450653429,-294.194488,0.00018991,2]
[330464515,1719450653439,-151.0,0.00018991,2]
[330464516,1719450653449,-228.917741,0.00018991,2]
[330464517,1719450653459,-228.917741,0.00018991,2]
[330464518,1719450653469,-310.785217,0.00018991,2]
[330464519,1719450653478,-310.785217,0.00018991,2]
[330464520,1719450653488,-13958.89460432,0.00019,2]
[330464521,1719450653498,-509.0,0.00019,2]
[330464522,1719450653507,-151.0,0.00019,2]
[330464523,1719450653516,-151.0,0.00019,2]
[330464524,1719450653526,-332.658122,0.00019,2]
[330464525,1719450653536,-151.0,0.00019,2]
[330464526,1719450653545,-1233.86718,0.00019,2]
[330464527,1719450653555,-387.12114112,0.00019077,2]
[330464528,1719450653564,-543.83180554,0.00019077,2]
[330464529,1719450653574,-223.37345377,0.00019178,2]
[330464530,1719450653583,-500.0,0.00019178,2]
[330464531,1719450653592,-419.06568283,0.00019178,2]
[330464532,1719450653601,-494.92884498,0.00019178,2]
[330464533,1719450653611,-481.83626015,0.00019178,2]
[330464534,1719450653621,-500.0,0.00019178,2]
[330464535,1719450653630,-585.49142162,0.00019178,2]
[330464536,1719450653640,-331.73500399,0.00019178,2]
[330464537,1719450653650,-250.0,0.00019178,2]
[330464538,1719450653660,-760.07072608,0.000192,2]
[330464539,1719450653670,-20769.83878618,0.000192,2]
[330464540,1719450653679,-186.788865,0.00019233,2]
[330464541,1719450653688,-1747.6921079,0.00019274,2]
[330464542,1719450653698,-794.753853,0.00019274,2]
[330464543,1719450653707,-794.753845,0.00019274,2]